fUSD/lending_fUSD_20250612
["ID","MTS","AMOUNT","RATE_DAILY","PERIOD"]
[365494236,1749703470273,1161.97,0.0003803,120]
[365494237,1749703470307,490.0,0.0003803,120]
[365494238,1749703470412,723.04,0.0003803,120]
[365494239,1749703470447,494.96,0.0003803,120]
[365494240,1749703470483,3633.3,0.0003803,120]
[365494241,1749703470517,490.0,0.0003803,120]
[365494242,1749703470552,490.0,0.0003803,120]
[365494243,1749703470590,1161.97,0.0003803,120]
[365494244,1749703470666,723.04,0.0003803,120]
[365494245,1749703470782,1161.97,0.0003803,120]
[365494246,1749703470849,490.0,0.0003803,120]
[365494247,1749703470941,3633.3,0.0003803,120]
[365494248,1749703471009,723.04,0.0003803,120]
[365494249,1749703471054,494.96,0.0003803,120]
[365494250,1749703471099,1161.97,0.0003803,120]
[365494251,1749703471137,490.0,0.0003803,120]
[365494252,1749703471180,3633.3,0.0003803,120]
[365494253,1749703471219,723.04,0.0003803,120]
[365494254,1749703471314,494.96,0.0003803,120]
[365494255,1749703471358,490.0,0.0003803,120]
[365494256,1749703471397,1161.97,0.0003803,120]
[365494258,1749703471822,692.53,0.0003803,120]
[365494261,1749703471864,3633.3,0.0003803,120]
[365494262,1749703471966,723.04,0.0003803,120]
[365494263,1749703472036,490.0,0.0003803,120]
[365494264,1749703472077,1161.97,0.0003803,120]
[365494265,1749703472114,494.96,0.0003803,120]
[365494266,1749703472151,3633.3,0.0003803,120]
[365494267,1749703472187,723.04,0.0003803,120]
[365494268,1749703472225,692.53,0.0003803,120]
[365494269,1749703472261,490.0,0.0003803,120]
[365494270,1749703472299,1161.97,0.0003803,120]
[365494271,1749703472337,494.96,0.0003803,120]
[365494272,1749703472377,3633.3,0.0003803,120]
[365494273,1749703472415,723.04,0.0003803,120]
[365494274,1749703472452,692.53,0.0003803,120]
[365494275,1749703472579,490.0,0.0003803,120]
[365494276,1749703472617,1161.97,0.0003803,120]
[365494277,1749703472655,3633.3,0.0003803,120]
[365494278,1749703472692,723.04,0.0003803,120]
[365494279,1749703472727,692.53,0.0003803,120]
[365494280,1749703472769,494.96,0.0003803,120]
[365494281,1749703472811,1161.97,0.0003803,120]
[365494282,1749703472851,490.0,0.0003803,120]
[365494283,1749703472891,723.04,0.0003803,120]
[365494284,1749703472929,692.53,0.0003803,120]
[365494285,1749703472968,3633.3,0.0003803,120]
[365494286,1749703473009,494.96,0.0003803,120]
[365494287,1749703473085,1161.97,0.0003803,120]
[365494288,1749703473149,490.0,0.0003803,120]
[365494289,1749703473217,692.53,0.0003803,120]
[365494290,1749703473257,723.04,0.0003803,120]
[365494291,1749703473298,3633.3,0.0003803,120]
[365494292,1749703473336,494.96,0.0003803,120]
[365494293,1749703473377,1162.11286347,0.0003803,120]
[365494294,1749703473423,490.0,0.0003803,120]
[365494295,1749703473464,3633.3,0.0003803,120]
[365494296,1749703473503,692.53,0.0003803,120]
[365494297,1749703473543,723.04,0.0003803,120]
[365494298,1749703473583,495.19882675,0.0003803,120]
[365494299,1749703473622,490.0,0.0003803,120]
[365494300,1749703473663,3633.3,0.0003803,120]
[365494301,1749703473702,692.53,0.0003803,120]
[365494302,1749703473743,723.04,0.0003803,120]
[365494303,1749703473787,490.0,0.0003803,120]
[365494304,1749703473829,1195.9670401,0.0003803,120]
[365494305,1749703478973,180.09153605,0.000161,2]
[365494306,1749703497198,3032.59259947,0.00017628,2]
[365494307,1749703497224,5000.0,0.00017628,2]
[365494308,1749703498253,-336.56958982,0.00017628,2]
[365494311,1749703551274,499.99,0.00024658,120]
[365494312,1749703577469,2122.0,0.00024658,120]
[365494319,1749703602252,-296.68194218,0.00017336,2]
[365494321,1749703609643,-2.31805782,0.00017336,2]
[365494322,1749703628129,333.56402375,0.00024658,120]
[365494323,1749703630150,-379.03,0.00017597,2]
[365494324,1749703630171,-1200.0,0.00017627,2]
[365494325,1749703630192,-300.0,0.00017627,2]
[365494326,1749703630214,-300.0,0.00017627,2]
[365494327,1749703630235,-520.53523734,0.00017628,2]
[365494328,1749703645108,-1611.19466793,0.00017628,2]
[365494330,1749703677392,857.65,0.00015648,2]
[365494334,1749703810120,333.56402376,0.00024658,120]
[365494338,1749703831769,-202.0,0.00017591,2]
[365494339,1749703831779,-300.0,0.00017627,2]
[365494340,1749703831789,-19.84756269,0.00017627,2]
[365494341,1749703831801,-1180.15243731,0.00017627,2]
[365494342,1749703831810,-166.51,0.00017627,2]
[365494343,1749703831820,-303.3375627,0.00017628,2]
[365494344,1749703831832,-2035.55,0.00017628,2]
[365494345,1749703831865,-4325.22167949,0.00017628,2]
[365494346,1749703831898,-4950.60121768,0.00017628,2]
[365494385,1749703837646,-615.56215845,0.00017628,2]
[365494386,1749703837710,-396.16244421,0.00017628,2]
[365494387,1749703837925,-456.94999604,0.00017628,2]
[365494388,1749703837970,-595.33391466,0.00017628,2]
[365494512,1749703839642,-17259.37893221,0.00017628,2]
[365494514,1749703839655,-250.0,0.00017671,2]
[365494517,1749703839670,-300.0,0.00017671,2]
[365494519,1749703839683,-150.0,0.00017682,7]
[365494522,1749703839696,-631.78,0.00017714,2]
[365494524,1749703839709,-2939.37910014,0.00017911,2]
[365494526,1749703839722,-857.65,0.00017912,2]
[365494529,1749703839736,-271.69277369,0.0001806,2]
[365494531,1749703839749,-167.35,0.00018068,2]
[365494534,1749703839762,-1251.90468267,0.0001816,2]
[365494536,1749703839775,-1251.90468266,0.00018193,2]
[365494538,1749703839787,-202.0,0.00018224,2]
[365494541,1749703839800,-819.26,0.0001825,2]
[365494543,1749703839812,-819.26,0.00018255,2]
[365494545,1749703839825,-1017.29349913,0.00018255,2]
[365494547,1749703839837,-819.26,0.0001826,2]
[365494550,1749703839850,-819.26,0.00018265,2]
[365494552,1749703839866,-819.26,0.00018269,2]
[365494554,1749703839878,-819.26,0.00018274,2]
[365494557,1749703839890,-819.26,0.00018279,2]
[365494559,1749703839903,-819.26,0.00018284,2]
[365494561,1749703839915,-819.26,0.00018289,2]
[365494563,1749703839927,-819.26,0.00018293,2]
[365494565,1749703839939,-819.26,0.00018298,2]
[365494568,1749703839951,-819.26,0.00018303,2]
[365494570,1749703839963,-200.0,0.00018307,2]
[365494573,1749703839979,-819.26,0.00018308,2]
[365494575,1749703839993,-819.26,0.00018312,2]
[365494577,1749703840006,-183.0,0.00018314,2]
[365494580,1749703840019,-819.26,0.00018317,2]
[365494582,1749703840033,-819.26,0.00018322,2]
[365494585,1749703840046,-819.26,0.00018327,2]
[365494587,1749703840059,-550.0,0.00018327,2]
[365494589,1749703840072,-819.26,0.00018332,2]
[365494592,1749703840085,-819.26,0.00018336,2]
[365494594,1749703840098,-819.26,0.00018341,2]
[365494596,1749703840111,-242.0,0.00018353,2]
[365494599,1749703840123,-564.01385733,0.00018356,2]
[365494601,1749703840136,-219.42375279,0.000184,2]
[365494603,1749703840149,-213.14409601,0.00018421,2]
[365494606,1749703840162,-151.0,0.00018423,2]
[365494608,1749703840176,-1957.856,0.00018423,2]
[365494610,1749703840189,-207.4,0.00018423,2]
[365494613,1749703840201,-264.32861737,0.00018465,4]
[365494621,1749703840269,-335.67138263,0.00018465,4]
[365494623,1749703840281,-373.09943189,0.00018469,2]
[365494625,1749703840293,-2029.21443548,0.00018478,2]
[365494633,1749703840356,-1.08223652,0.00018478,2]
[365494636,1749703840371,-500.0,0.00018487,2]
[365494638,1749703840383,-304.15,0.00018489,2]
[365494640,1749703840395,-304.34,0.00018501,2]
[365494642,1749703840407,-1615.49866395,0.00018533,2]
[365494644,1749703840421,-200.0,0.0001863,2]
[365494647,1749703840432,-300.69,0.0001866,2]
[365494649,1749703840444,-300.94,0.0001868,2]
[365494651,1749703840455,-1000.0,0.0001869,2]
[365494653,1749703840467,-810.84117319,0.00018755,2]
[365494655,1749703840479,-212.85,0.0001876,2]
[365494657,1749703840491,-169.12,0.0001876,2]
[365494660,1749703840502,-200.0,0.0001883,2]
[365494662,1749703840515,-202.0,0.00018857,3]
[365494664,1749703840528,-209.85273594,0.000189,2]
[365494666,1749703840540,-502.0,0.00019028,2]
[365494669,1749703840552,-500.0,0.00019028,2]
[365494671,1749703840563,-500.0,0.00019028,2]
[365494673,1749703840576,-500.0,0.00019028,2]
[365494717,1749703841058,-500.0,0.00019028,2]
[365494721,1749703841089,-200.0,0.0001903,2]
[365494723,1749703841101,-209.85273593,0.00019043,2]
[365494724,1749703841110,-810.84117319,0.00019056,2]
[365494726,1749703841120,-402.65070638,0.00019078,2]
[365494728,1749703841129,-402.65070624,0.00019121,2]
[365494730,1749703841138,-402.65070624,0.00019165,2]
[365494732,1749703841147,-425.27738027,0.00019178,2]
[365494733,1749703841157,-373.01006685,0.00019178,2]
[365494735,1749703841167,-490.0,0.00019178,2]
[365494738,1749703841187,-490.0,0.00019178,2]
[365494740,1749703841200,-490.0,0.00019178,2]
[365494742,1749703841210,-480.0,0.00019178,2]
[365494744,1749703841220,-490.0,0.00019178,2]
[365494746,1749703841230,-490.0,0.00019178,2]
[365494747,1749703841240,-490.82284214,0.00019178,2]
[365494749,1749703841250,-491.67455495,0.00019178,2]
[365494751,1749703841261,-490.0,0.00019178,2]
[365494753,1749703841271,-490.0,0.00019178,2]
[365494755,1749703841281,-574.03,0.00019178,2]
[365494757,1749703841291,-490.0,0.00019178,2]
[365494759,1749703841301,-490.0,0.00019178,2]
[365494760,1749703841311,-490.0,0.00019178,2]
[365494762,1749703841322,-542.12574744,0.00019178,2]
[365494764,1749703841332,-490.0,0.00019178,2]
[365494766,1749703841342,-490.0,0.00019178,2]
[365494767,1749703841352,-500.0,0.00019178,2]
[365494769,1749703841363,-500.0,0.00019178,2]
[365494771,1749703841373,-500.0,0.00019178,2]
[365494773,1749703841383,-490.0,0.00019178,2]
[365494775,1749703841393,-490.0,0.00019178,2]
[365494777,1749703841405,-849.5,0.00019178,2]
[365494779,1749703841416,-403.72,0.00019178,2]
[365494781,1749703841426,-500.0,0.00019178,2]
[365494783,1749703841435,-410.21191403,0.00019178,2]
[365494785,1749703841445,-490.0,0.00019178,2]
[365494786,1749703841455,-490.0,0.00019178,2]
[365494788,1749703841465,-517.01600954,0.00019178,2]
[365494790,1749703841476,-490.0,0.00019178,2]
[365494792,1749703841486,-490.0,0.00019178,2]
[365494794,1749703841496,-490.0,0.00019178,2]
[365494795,1749703841506,-574.12731398,0.00019178,2]
[365494797,1749703841515,-490.0,0.00019178,2]
[365494799,1749703841526,-490.0,0.00019178,2]
[365494801,1749703841536,-529.44479982,0.00019178,2]
[365494803,1749703841546,-490.0,0.00019178,2]
[365494805,1749703841556,-490.0,0.00019178,2]
[365494807,1749703841566,-457.19502805,0.00019178,2]
[365494809,1749703841577,-490.0,0.00019178,2]
[365494810,1749703841587,-490.0,0.00019178,2]
[365494812,1749703841597,-490.0,0.00019178,2]
[365494815,1749703841614,-469.08605643,0.00019178,2]
[365494817,1749703841624,-490.0,0.00019178,2]
[365494819,1749703841634,-490.0,0.00019178,2]
[365494821,1749703841645,-490.0,0.00019178,2]
[365494823,1749703841656,-490.0,0.00019178,2]
[365494824,1749703841666,-490.0,0.00019178,2]
[365494826,1749703841676,-500.34139933,0.00019178,2]
[365494828,1749703841686,-490.0,0.00019178,2]
[365494830,1749703841697,-490.0,0.00019178,2]
[365494832,1749703841707,-480.0,0.00019178,2]
[365494834,1749703841718,-490.0,0.00019178,2]
[365494836,1749703841730,-490.0,0.00019178,2]
[365494838,1749703841740,-490.0,0.00019178,2]
[365494840,1749703841751,-490.0,0.00019178,2]
[365494842,1749703841761,-490.0,0.00019178,2]
[365494844,1749703841772,-490.0,0.00019178,2]
[365494846,1749703841782,-687.81,0.00019178,2]
[365494847,1749703841792,-617.12,0.00019178,2]
[365494849,1749703841802,-490.0,0.00019178,2]
[365494851,1749703841813,-498.19852798,0.00019178,2]
[365494853,1749703841823,-490.0,0.00019178,2]
[365494855,1749703841833,-416.32729538,0.00019178,2]
[365494857,1749703841843,-490.0,0.00019178,2]
[365494859,1749703841853,-490.0,0.00019178,2]
[365494861,1749703841869,-490.0,0.00019178,2]
[365494863,1749703841879,-490.0,0.00019178,2]
[365494865,1749703841889,-206.96240907,0.00019178,2]
[365494867,1749703841899,-490.0,0.00019178,2]
[365494868,1749703841909,-482.33390101,0.00019178,2]
[365494870,1749703841921,-490.0,0.00019178,2]
[365494872,1749703841931,-490.0,0.00019178,2]
[365494874,1749703841942,-741.07,0.00019178,2]
[365494876,1749703841952,-490.0,0.00019178,2]
[365494878,1749703841962,-480.0,0.00019178,2]
[365494880,1749703841973,-490.0,0.00019178,2]
[365494882,1749703841983,-490.0,0.00019178,2]
[365494884,1749703841993,-717.89,0.00019178,2]
[365494886,1749703842003,-490.0,0.00019178,2]
[365494888,1749703842014,-445.66832507,0.00019178,2]
[365494890,1749703842024,-1089.23,0.00019178,2]
[365494891,1749703842034,-490.0,0.00019178,2]
[365494894,1749703842050,-739.54,0.00019178,2]
[365494896,1749703842061,-490.0,0.00019178,2]
[365494898,1749703842071,-490.0,0.00019178,2]
[365494899,1749703842082,-490.0,0.00019178,2]
[365494901,1749703842093,-189.45555588,0.00019178,2]
[365494903,1749703842103,-490.0,0.00019178,2]
[365494905,1749703842114,-477.17069264,0.00019178,2]
[365494907,1749703842124,-490.0,0.00019178,2]
[365494909,1749703842134,-738.23,0.00019178,2]
[365494911,1749703842145,-152.46668822,0.00019178,2]
[365494913,1749703842155,-490.0,0.00019178,2]
[365494915,1749703842165,-490.0,0.00019178,2]
[365494916,1749703842176,-312.28118946,0.00019178,2]
[365494918,1749703842186,-591.34,0.00019178,2]
[365494920,1749703842197,-490.0,0.00019178,2]
[365494922,1749703842207,-490.0,0.00019178,2]
[365494924,1749703842217,-490.0,0.00019178,2]
[365494926,1749703842228,-567.99,0.00019178,2]
[365494928,1749703842239,-490.0,0.00019178,2]
[365494930,1749703842249,-490.0,0.00019178,2]
[365494932,1749703842260,-490.0,0.00019178,2]
[365494934,1749703842270,-490.0,0.00019178,2]
[365494935,1749703842281,-1175.97,0.00019178,2]
[365494936,1749703842291,-490.0,0.00019178,2]
[365494937,1749703842301,-490.0,0.00019178,2]
[365494938,1749703842310,-490.0,0.00019178,2]
[365494939,1749703842321,-490.0,0.00019178,2]
[365494940,1749703842332,-490.0,0.00019178,2]
[365494941,1749703842342,-728.75,0.00019178,2]
[365494942,1749703842353,-720.81,0.00019178,2]
[365494943,1749703842363,-470.0,0.00019178,2]
[365494944,1749703842374,-1065.53,0.00019178,2]
[365494945,1749703842384,-490.0,0.00019178,2]
[365494946,1749703842395,-698.01,0.00019178,2]
[365494947,1749703842406,-490.0,0.00019178,2]
[365494948,1749703842417,-495.44,0.00019178,2]
[365494949,1749703842427,-831.48,0.00019178,2]
[365494950,1749703842438,-557.2697402,0.00019178,2]
[365494952,1749703842448,-490.0,0.00019178,2]
[365494955,1749703842459,-490.0,0.00019178,2]
[365494957,1749703842469,-490.0,0.00019178,2]
[365494959,1749703842484,-490.0,0.00019178,2]
[365494961,1749703842494,-490.0,0.00019178,2]
[365494963,1749703842505,-490.0,0.00019178,2]
[365494965,1749703842516,-490.0,0.00019178,2]
[365494967,1749703842527,-1489.08,0.00019178,2]
[365494970,1749703842537,-490.0,0.00019178,2]
[365494972,1749703842548,-490.0,0.00019178,2]
[365494974,1749703842559,-490.0,0.00019178,2]
[365494976,1749703842569,-490.0,0.00019178,2]
[365494978,1749703842579,-490.0,0.00019178,2]
[365494980,1749703842590,-490.0,0.00019178,2]
[365494982,1749703842600,-490.0,0.00019178,2]
[365494984,1749703842610,-490.0,0.00019178,2]
[365494986,1749703842620,-736.09,0.00019178,2]
[365494988,1749703842630,-327.9254869,0.00019178,2]
[365494990,1749703842641,-490.0,0.00019178,2]
[365494992,1749703842651,-480.0,0.00019178,2]
[365494994,1749703842661,-490.0,0.00019178,2]
[365494996,1749703842672,-490.0,0.00019178,2]
[365494999,1749703842682,-582.04257405,0.00019178,2]
[365495001,1749703842691,-490.0,0.00019178,2]
[365495003,1749703842702,-490.0,0.00019178,2]
[365495005,1749703842712,-490.0,0.00019178,2]
[365495007,1749703842722,-490.0,0.00019178,2]
[365495009,1749703842732,-490.0,0.00019178,2]
[365495011,1749703842742,-501.7,0.00019178,2]
[365495013,1749703842752,-490.0,0.00019178,2]
[365495015,1749703842761,-490.0,0.00019178,2]
[365495017,1749703842771,-1129.37,0.00019178,2]
[365495019,1749703842782,-490.0,0.00019178,2]
[365495021,1749703842792,-490.0,0.00019178,2]
[365495023,1749703842801,-490.0,0.00019178,2]
[365495025,1749703842811,-1228.51,0.00019178,2]
[365495027,1749703842821,-903.37,0.00019178,2]
[365495029,1749703842832,-490.0,0.00019178,2]
[365495031,1749703842843,-490.0,0.00019178,2]
[365495033,1749703842852,-752.88,0.00019178,2]
[365495035,1749703842866,-610.76,0.00019178,2]
[365495037,1749703842877,-657.94,0.00019178,2]
[365495039,1749703842887,-490.0,0.00019178,2]
[365495041,1749703842897,-490.0,0.00019178,2]
[365495043,1749703842907,-490.0,0.00019178,2]
[365495046,1749703842928,-393.290475,0.00019178,2]
[365495048,1749703842941,-1024.46,0.00019178,2]
[365495050,1749703842951,-290.33489719,0.00019178,2]
[365495052,1749703842961,-198.1738388,0.00019178,2]
[365495054,1749703842972,-561.64,0.00019178,2]
[365495056,1749703842982,-490.0,0.00019178,2]
[365495059,1749703842993,-490.0,0.00019178,2]
[365495061,1749703843004,-490.0,0.00019178,2]
[365495063,1749703843014,-490.0,0.00019178,2]
[365495065,1749703843025,-490.0,0.00019178,2]
[365495067,1749703843036,-490.0,0.00019178,2]
[365495069,1749703843047,-490.0,0.00019178,2]
[365495071,1749703843057,-616.58,0.00019178,2]
[365495073,1749703843067,-713.61,0.00019178,2]
[365495075,1749703843077,-490.0,0.00019178,2]
[365495077,1749703843087,-604.12,0.00019178,2]
[365495079,1749703843098,-303.67005792,0.00019178,2]
[365495081,1749703843108,-414.25464342,0.00019178,2]
[365495083,1749703843119,-792.19,0.00019178,2]
[365495085,1749703843129,-490.0,0.00019178,2]
[365495088,1749703843139,-794.36,0.00019178,2]
[365495090,1749703843150,-490.0,0.00019178,2]
[365495092,1749703843160,-709.72,0.00019178,2]
[365495094,1749703843170,-490.0,0.00019178,2]
[365495096,1749703843181,-490.0,0.00019178,2]
[365495098,1749703843191,-614.27860205,0.00019178,2]
[365495100,1749703843201,-1124.59,0.00019178,2]
[365495102,1749703843212,-732.11,0.00019178,2]
[365495104,1749703843222,-490.0,0.00019178,2]
[365495106,1749703843232,-490.0,0.00019178,2]
[365495108,1749703843243,-642.72,0.00019178,2]
[365495110,1749703843253,-1215.72,0.00019178,2]
[365495113,1749703843264,-490.0,0.00019178,2]
[365495115,1749703843274,-594.11,0.00019178,2]
[365495117,1749703843284,-690.24,0.00019178,2]
[365495119,1749703843295,-521.61,0.00019178,2]
[365495121,1749703843305,-504.12587919,0.00019178,2]
[365495123,1749703843315,-764.03,0.00019178,2]
[365495125,1749703843325,-437.02052294,0.00019178,2]
[365495127,1749703843336,-607.16,0.00019178,2]
[365495129,1749703843346,-490.0,0.00019178,2]
[365495131,1749703843356,-1033.53,0.00019178,2]
[365495133,1749703843367,-490.0,0.00019178,2]
[365495135,1749703843378,-779.59,0.00019178,2]
[365495137,1749703843389,-490.0,0.00019178,2]
[365495139,1749703843399,-391.652639,0.00019178,2]
[365495142,1749703843409,-944.16,0.00019178,2]
[365495144,1749703843420,-490.0,0.00019178,2]
[365495146,1749703843430,-490.0,0.00019178,2]
[365495148,1749703843440,-486.63241132,0.00019178,2]
[365495150,1749703843451,-151.0,0.00019178,2]
[365495152,1749703843461,-164.55,0.00019178,2]
[365495154,1749703843472,-1000.0,0.00019178,2]
[365495156,1749703843481,-1000.0,0.00019178,2]
[365495158,1749703843492,-1000.0,0.00019178,2]
[365495160,1749703843503,-1000.0,0.00019178,2]
[365495162,1749703843513,-1000.0,0.00019178,2]
[365495164,1749703843523,-1000.0,0.00019178,2]
[365495166,1749703843534,-1000.0,0.00019178,2]
[365495168,1749703843545,-508.0,0.00019178,2]
[365495170,1749703843555,-150.0,0.00019178,2]
[365495172,1749703843564,-209.85273593,0.00019186,2]
[365495175,1749703843574,-402.65070624,0.00019208,2]
[365495177,1749703843585,-810.84117319,0.00019229,2]
[365495179,1749703843594,-200.0,0.0001923,2]
[365495181,1749703843604,-420.0,0.0001924,2]
[365495183,1749703843616,-420.0,0.0001924,2]
[365495185,1749703843627,-598.89363372,0.00019242,2]
[365495187,1749703843638,-216.30585783,0.00019242,2]
[365495189,1749703843648,-402.65070624,0.00019251,2]
[365495191,1749703843658,-880.0,0.00019281,2]
[365495193,1749703843668,-402.65070624,0.00019294,2]
[365495195,1749703843680,-598.89363372,0.00019315,2]
[365495197,1749703843692,-209.85273593,0.00019329,2]
[365495199,1749703843702,-1680.0,0.00019335,2]
[365495201,1749703843712,-402.65070624,0.00019338,2]
[365495203,1749703843722,-191.7,0.00019341,2]
[365495205,1749703843733,-500.0,0.00019341,2]
[365495207,1749703843743,-500.0,0.00019341,2]
[365495209,1749703843753,-165.99198552,0.00019341,2]
[365495212,1749703843765,-243.92353738,0.00019341,2]
[365495214,1749703843775,-515.15399301,0.00019341,2]
[365495216,1749703843785,-296.62828283,0.00019341,2]
[365495218,1749703843795,-496.51831931,0.00019342,2]
[365495220,1749703843805,-471.16595779,0.00019342,2]
[365495222,1749703843815,-490.0,0.00019342,2]
[365495224,1749703843826,-490.0,0.00019342,2]
[365495226,1749703843836,-272.40397156,0.00019342,2]
[365495228,1749703843846,-480.0,0.00019342,2]
[365495230,1749703843856,-490.0,0.00019342,2]
[365495232,1749703843869,-490.0,0.00019342,2]
[365495234,1749703843878,-490.0,0.00019342,2]
[365495236,1749703843889,-490.0,0.00019342,2]
[365495238,1749703843899,-849.5,0.00019342,2]
[365495240,1749703843910,-490.0,0.00019342,2]
[365495242,1749703843923,-490.0,0.00019342,2]
[365495244,1749703843933,-490.0,0.00019342,2]
[365495246,1749703843943,-490.0,0.00019342,2]
[365495248,1749703843954,-490.0,0.00019342,2]
[365495250,1749703843964,-490.0,0.00019342,2]
[365495252,1749703843973,-194.78,0.00019342,2]
[365495254,1749703843983,-490.0,0.00019342,2]
[365495256,1749703843993,-490.0,0.00019342,2]
[365495258,1749703844003,-513.32878627,0.00019342,2]
[365495260,1749703844013,-528.97510332,0.00019342,2]
[365495262,1749703844023,-490.0,0.00019342,2]
[365495264,1749703844033,-617.12,0.00019342,2]
[365495266,1749703844043,-687.81,0.00019342,2]
[365495268,1749703844052,-490.0,0.00019342,2]
[365495270,1749703844062,-490.0,0.00019342,2]
[365495272,1749703844072,-490.0,0.00019342,2]
[365495274,1749703844082,-480.0,0.00019342,2]
[365495276,1749703844092,-490.0,0.00019342,2]
[365495278,1749703844101,-490.0,0.00019342,2]
[365495280,1749703844111,-741.07,0.00019342,2]
[365495282,1749703844121,-490.0,0.00019342,2]
[365495284,1749703844130,-717.89,0.00019342,2]
[365495286,1749703844140,-507.42434012,0.00019342,2]
[365495288,1749703844150,-1089.23,0.00019342,2]
[365495290,1749703844159,-739.54,0.00019342,2]
[365495292,1749703844171,-490.0,0.00019342,2]
[365495294,1749703844181,-263.15843872,0.00019342,2]
[365495296,1749703844192,-490.0,0.00019342,2]
[365495298,1749703844201,-738.23,0.00019342,2]
[365495300,1749703844210,-490.0,0.00019342,2]
[365495302,1749703844221,-480.0,0.00019342,2]
[365495305,1749703844231,-591.34,0.00019342,2]
[365495307,1749703844241,-490.0,0.00019342,2]
[365495309,1749703844251,-490.0,0.00019342,2]
[365495311,1749703844261,-567.99,0.00019342,2]
[365495313,1749703844271,-490.0,0.00019342,2]
[365495315,1749703844280,-490.0,0.00019342,2]
[365495317,1749703844290,-490.0,0.00019342,2]
[365495319,1749703844300,-1175.97,0.00019342,2]
[365495321,1749703844310,-490.0,0.00019342,2]
[365495323,1749703844320,-571.20146363,0.00019342,2]
[365495325,1749703844331,-728.75,0.00019342,2]
[365495327,1749703844341,-720.81,0.00019342,2]
[365495329,1749703844351,-1065.53,0.00019342,2]
[365495331,1749703844360,-264.64918471,0.00019342,2]
[365495333,1749703844371,-698.01,0.00019342,2]
[365495335,1749703844380,-490.0,0.00019342,2]
[365495337,1749703844390,-495.44,0.00019342,2]
[365495339,1749703844401,-831.48,0.00019342,2]
[365495341,1749703844411,-490.0,0.00019342,2]
[365495343,1749703844422,-490.0,0.00019342,2]
[365495345,1749703844432,-490.0,0.00019342,2]
[365495347,1749703844442,-1489.08,0.00019342,2]
[365495350,1749703844452,-480.0,0.00019342,2]
[365495352,1749703844462,-490.0,0.00019342,2]
[365495354,1749703844473,-490.0,0.00019342,2]
[365495356,1749703844483,-490.0,0.00019342,2]
[365495358,1749703844493,-490.0,0.00019342,2]
[365495360,1749703844503,-490.0,0.00019342,2]
[365495362,1749703844513,-736.09,0.00019342,2]
[365495364,1749703844523,-151.64711293,0.00019342,2]
[365495366,1749703844533,-490.0,0.00019342,2]
[365495368,1749703844543,-490.0,0.00019342,2]
[365495370,1749703844553,-358.27781149,0.00019342,2]
[365495372,1749703844563,-484.86361068,0.00019342,2]
[365495374,1749703844573,-490.0,0.00019342,2]
[365495376,1749703844583,-490.0,0.00019342,2]
[365495378,1749703844594,-501.7,0.00019342,2]